fUSD/lending_fUSD_20260202
["ID","MTS","AMOUNT","RATE_DAILY","PERIOD"]
[404286857,1770033048225,-1500.0,0.00016568,2]
[404286858,1770033048234,-276.88278142,0.00016568,2]
[404286859,1770033048244,-504.6853335,0.00016568,2]
[404286860,1770033048253,-1500.0,0.00016568,2]
[404286861,1770033048262,-282.06,0.00016621,2]
[404286862,1770033048272,-152.4,0.00016712,2]
[404286863,1770033048281,-839.0,0.0001672,2]
[404286864,1770033048291,-839.0,0.0001672,2]
[404286865,1770033048300,-839.0,0.0001672,2]
[404286866,1770033048309,-163.0,0.0001672,2]
[404286867,1770033048318,-393.99562504,0.0001675,2]
[404286868,1770033048331,-11435.38764467,0.00016787,2]
[404286869,1770033048340,-10954.02929009,0.00016787,2]
[404286870,1770033048349,-1996.82,0.00016791,2]
[404286871,1770033048358,-1600.0,0.00016862,2]
[404286872,1770033048367,-250.0,0.00016933,2]
[404286873,1770033048376,-8043.77,0.00016936,2]
[404286874,1770033048387,-200.0,0.00016983,2]
[404286875,1770033048398,-2205.73614126,0.00017,3]
[404286876,1770033048408,-223.2,0.00017031,2]
[404286877,1770033048417,-839.0,0.0001704,2]
[404286878,1770033048427,-839.0,0.0001704,2]
[404286879,1770033048436,-163.0,0.0001704,2]
[404286880,1770033048445,-153.21504762,0.00017047,2]
[404286881,1770033048455,-3292.0,0.00017057,2]
[404286882,1770033048464,-502.95071122,0.00017065,2]
[404286883,1770033048473,-322.6107,0.00017099,2]
[404286884,1770033048482,-578.20924308,0.00017099,2]
[404286885,1770033048491,-721.12765535,0.00017099,2]
[404286886,1770033048500,-232.68774879,0.00017099,2]
[404286887,1770033048509,-209.40437684,0.00017099,2]
[404286888,1770033048521,-1428.38747117,0.00017099,2]
[404286889,1770033048530,-209.40437684,0.00017099,2]
[404286890,1770033048539,-174.61919141,0.00017099,2]
[404286891,1770033048549,-250.0,0.00017099,2]
[404286892,1770033048558,-250.0,0.00017099,2]
[404286893,1770033048567,-250.0,0.00017099,2]
[404286894,1770033048576,-250.0,0.00017099,2]
[404286895,1770033048586,-250.0,0.00017099,2]
[404286896,1770033048595,-250.0,0.00017099,2]
[404286897,1770033048604,-250.0,0.00017099,2]
[404286898,1770033048613,-250.0,0.00017099,2]
[404286899,1770033048622,-250.0,0.00017099,2]
[404286900,1770033048631,-250.0,0.00017099,2]
[404286901,1770033048640,-250.0,0.00017099,2]
[404286902,1770033048650,-500.0,0.00017099,2]
[404286903,1770033048661,-500.0,0.00017099,2]
[404286904,1770033048670,-277.35679052,0.00017099,2]
[404286905,1770033048680,-151.0,0.00017099,2]
[404286906,1770033048690,-209.40437684,0.00017099,2]
[404286907,1770033048700,-859.80605061,0.00017099,2]
[404286908,1770033048710,-715.94,0.00017112,2]
[404286909,1770033048723,-1488.36339388,0.00017116,2]
[404286910,1770033048732,-1256.98671009,0.00017116,2]
[404286911,1770033048743,-2000.0,0.00017116,2]
[404286912,1770033048752,-508.230722,0.00017116,2]
[404286913,1770033048762,-1628.18837233,0.00017116,2]
[404286914,1770033048771,-2136.8475123,0.00017116,2]
[404286915,1770033048781,-974.64879752,0.00017116,2]
[404286916,1770033048790,-643.18674336,0.00017116,2]
[404286917,1770033048800,-2000.0,0.00017116,2]
[404286918,1770033048809,-1612.39809416,0.00017116,2]
[404286919,1770033048818,-689.68040771,0.00017116,2]
[404286920,1770033048828,-2000.0,0.00017116,2]
[404286921,1770033048838,-2000.0,0.00017116,2]
[404286922,1770033048848,-506.20015718,0.00017116,2]
[404286923,1770033048857,-2000.0,0.00017116,2]
[404286924,1770033048867,-500.0,0.00017139,2]
[404286925,1770033048876,-217.15233878,0.00017154,2]
[404286926,1770033048885,-282.06,0.00017172,2]
[404286927,1770033048895,-1330.2,0.00017202,2]
[404286928,1770033048904,-225.18697532,0.00017209,2]
[404286929,1770033048914,-152.49,0.00017255,2]
[404286930,1770033048923,-159.99318318,0.00017258,2]
[404286931,1770033048933,-1000.0,0.0001726,2]
[404286932,1770033048942,-233.51889341,0.00017264,2]
[404286933,1770033048952,-1899.6725397,0.00017286,2]
[404286934,1770033048961,-242.15909246,0.00017319,2]
[404286935,1770033048970,-4763.0,0.00017328,2]
[404286936,1770033048979,-11435.38764467,0.00017343,2]
[404286937,1770033048988,-10954.02929009,0.00017344,2]
[404286938,1770033048998,-4763.0,0.00017368,2]
[404286939,1770033049007,-251.11897888,0.00017374,2]
[404286940,1770033049016,-1500.0,0.000174,2]
[404286941,1770033049025,-150.0,0.00017425,2]
[404286942,1770033049034,-260.4103811,0.00017429,2]
[404286943,1770033049043,-839.0,0.0001745,2]
[404286944,1770033049052,-270.0455652,0.00017484,2]
[404286945,1770033049061,-13442.50995431,0.000175,2]
[404286946,1770033049070,-4763.0,0.00017525,2]
[404286947,1770033049079,-1000.0,0.00017534,2]
[404286948,1770033049088,-280.03725112,0.00017539,2]
[404286949,1770033049097,-290.39862941,0.00017594,2]
[404286950,1770033049116,-1500.0,0.000176,2]
[404286951,1770033049126,-217.15233878,0.00017647,2]
[404286952,1770033049135,-1481.23780761,0.00017647,2]
[404286953,1770033049144,-217.15233878,0.00017647,2]
[404286954,1770033049153,-181.08010149,0.00017647,2]
[404286955,1770033049163,-168.90333538,0.00017647,2]
[404286956,1770033049172,-151.49674582,0.00017647,2]
[404286957,1770033049182,-891.61887448,0.00017647,2]
[404286958,1770033049191,-301.1433787,0.00017649,2]
[404286959,1770033049200,-1002.53462592,0.00017664,2]
[404286960,1770033049210,-447.23523297,0.00017664,2]
[404286961,1770033049219,-502.03881526,0.00017664,2]
[404286962,1770033049228,-716.63993214,0.00017664,2]
[404286963,1770033049238,-1504.86417643,0.00017664,2]
[404286964,1770033049246,-4763.0,0.00017673,2]
[404286965,1770033049256,-2835.0,0.0001768,2]
[404286966,1770033049265,-163.0,0.0001768,2]
[404286967,1770033049274,-10091.57601831,0.00017691,2]
[404286968,1770033049283,-500.0,0.00017699,2]
[404286969,1770033049293,-17205.90121961,0.000177,3]
[404286970,1770033049302,-715.94,0.00017709,2]
[404286971,1770033049311,-5888.0,0.00017711,2]
[404286972,1770033049322,-150.0,0.0001772,2]
[404286973,1770033049332,-403.0,0.0001773,2]
[404286974,1770033049341,-25000.0,0.00017733,3]
[404286975,1770033049352,-200.0,0.00017735,2]
[404286976,1770033049361,-5888.0,0.00017737,2]
[404286977,1770033049374,-25000.0,0.00017742,3]
[404286978,1770033049384,-487.72452553,0.00017744,2]
[404286979,1770033049395,-25000.0,0.0001775,3]
[404286980,1770033049406,-25000.0,0.00017759,3]
[404286981,1770033049417,-25000.0,0.00017768,3]
[404286982,1770033049427,-25000.0,0.00017777,3]
[404286983,1770033049439,-1893.0370582,0.00017784,2]
[404286984,1770033049450,-2561.3379,0.00017784,2]
[404286985,1770033049461,-25000.0,0.00017786,3]
[404286986,1770033049471,-25000.0,0.00017794,3]
[404286987,1770033049483,-1500.0,0.000178,2]
[404286988,1770033049493,-5888.0,0.00017803,2]
[404286989,1770033049503,-25000.0,0.00017803,3]
[404286990,1770033049516,-500.0,0.00017808,2]
[404286991,1770033049526,-1000.0,0.00017808,2]
[404286992,1770033049537,-25000.0,0.00017812,3]
[404286993,1770033049548,-2000.0,0.0001782,2]
[404286994,1770033049559,-2000.0,0.0001782,2]
[404286995,1770033049570,-25000.0,0.00017821,3]
[404286996,1770033049580,-25000.0,0.0001783,3]
[404286997,1770033049591,-25000.0,0.00017838,3]
[404286998,1770033049600,-403.0,0.00017847,2]
[404286999,1770033049611,-25000.0,0.00017847,3]
[404287000,1770033049621,-200.0,0.00017855,2]
[404287001,1770033049632,-200.0,0.00017856,2]
[404287002,1770033049642,-25000.0,0.00017856,3]
[404287003,1770033049654,-200.0,0.00017856,2]
[404287004,1770033049667,-200.0,0.00017856,2]
[404287005,1770033049676,-403.0,0.0001786,2]
[404287006,1770033049685,-500.0,0.00017863,2]
[404287007,1770033049695,-25000.0,0.00017865,3]
[404287008,1770033049704,-25000.0,0.00017874,3]
[404287009,1770033049714,-25000.0,0.00017882,3]
[404287010,1770033049727,-242.83565079,0.00017888,2]
[404287011,1770033049736,-25000.0,0.00017891,3]
[404287012,1770033049747,-502.21542978,0.00017899,2]
[404287013,1770033049756,-500.0,0.00017899,2]
[404287014,1770033049767,-500.89475649,0.00017899,2]
[404287015,1770033049777,-393.99562504,0.000179,2]
[404287016,1770033049787,-25000.0,0.000179,3]
[404287017,1770033049797,-11435.38764467,0.000179,2]
[404287018,1770033049806,-502.95071122,0.000179,2]
[404287019,1770033049817,-5146.17023235,0.000179,2]
[404287020,1770033049827,-199.24021691,0.000179,2]
[404287021,1770033049838,-10954.02929009,0.000179,2]
[404287022,1770033049848,-12781.0,0.000179,2]
[404287023,1770033049858,-1000.0,0.00017909,2]
[404287024,1770033049868,-500.0,0.00017918,2]
[404287025,1770033049877,-5888.0,0.0001793,2]
[404287026,1770033049887,-275.02857155,0.0001793,2]
[404287027,1770033049897,-403.0,0.00017931,2]
[404287028,1770033049907,-200.009499,0.00017931,2]
[404287029,1770033049917,-772.93,0.00017946,2]
[404287030,1770033049927,-1330.2,0.00017966,2]
[404287031,1770033049936,-506.1208044,0.00017972,2]
[404287032,1770033049946,-500.0,0.00017982,2]
[404287033,1770033049956,-403.0,0.00017985,2]
[404287034,1770033049965,-283.19199064,0.0001799,2]
[404287035,1770033049974,-1647.250915,0.00017992,2]
[404287036,1770033049985,-27156.97086,0.00017992,2]
[404287037,1770033049994,-5278.7517683,0.00017992,2]
[404287038,1770033050003,-3238.9136044,0.00017992,2]
[404287039,1770033050013,-96603.1548009,0.00017992,2]
[404287040,1770033050024,-5652.6624168,0.00017992,2]
[404287041,1770033050035,-1833.8438655,0.00017992,2]
[404287042,1770033050045,-1000.0,0.00017996,2]
[404287043,1770033050056,-153.40029052,0.00017999,2]
[404287044,1770033050067,-155.0,0.00017999,2]
[404287045,1770033050078,-370.60265536,0.00017999,2]
[404287046,1770033050089,-300.0,0.00017999,2]
[404287047,1770033050100,-300.0,0.00017999,2]
[404287048,1770033050110,-300.0,0.00017999,2]
[404287049,1770033050120,-307.79570543,0.00017999,2]
[404287050,1770033050130,-1592279.06905739,0.00018,2]
[404287051,1770033050140,-778392.14758044,0.00018,2]
[404287052,1770033050606,-166.66,0.00011374,2]
[404287053,1770033050633,-166.66,0.00011613,2]
[404287054,1770033050663,-166.66,0.00011853,2]
[404287055,1770033050691,-166.66,0.00012092,2]
[404287056,1770033050721,-166.66,0.00012332,2]
[404287057,1770033050772,166.66,0.00012571,2]
[404287058,1770033050888,-828.0,0.00013037,2]
[404287059,1770033050899,-150.0,0.00016752,2]
[404287060,1770033050908,-5301.0,0.00018,2]
[404287061,1770033051103,-720.83581714,0.00015396,2]
[404287062,1770033051113,-15450.13130133,0.00018,2]
[404287063,1770033051128,-2444.21357412,0.00018,2]
[404287064,1770033051140,-8621.78642588,0.00018,2]
[404287065,1770033051193,-519.92,0.00018,2]
[404287066,1770033051227,-5499.27960101,0.00018,2]
[404287067,1770033051429,-6000.0,0.00018,2]
[404287068,1770033051443,-414.73118344,0.00018,2]
[404287194,1770033060667,1141.0,0.00015,6]
[404287195,1770033068090,3166.75,0.00012802,2]
[404287196,1770033068119,5000.01,0.00012802,2]
[404287197,1770033068147,5000.01,0.00012802,2]
[404287198,1770033068174,5000.01,0.00012802,2]
[404287199,1770033068205,5000.01,0.00012802,2]
[404287200,1770033068233,5000.01,0.00012802,2]
[404287201,1770033068262,5000.01,0.00012802,2]
[404287202,1770033068290,5000.01,0.00012802,2]
[404287203,1770033068331,5000.01,0.00012802,2]
[404287204,1770033068357,5000.01,0.00012802,2]
[404287205,1770033074274,-1666.6,0.00012802,2]
[404287206,1770033077230,-5000.01,0.00012802,2]
[404287207,1770033077345,-5000.01,0.00012802,2]
[404287208,1770033077450,-5000.01,0.00012802,2]
[404287209,1770033077568,-5000.01,0.00012802,2]
[404287210,1770033077682,-5000.01,0.00012802,2]
[404287211,1770033077902,-5000.01,0.00012802,2]
[404287212,1770033078008,-5000.01,0.00012802,2]
[404287213,1770033078123,-5000.01,0.00012802,2]
[404287214,1770033078339,-5000.01,0.00012802,2]
[404287215,1770033079293,-5000.01,0.00012802,2]
[404287216,1770033100491,-2009.737,0.00012546,2]
[404287217,1770033100521,-159.765,0.00012546,2]
[404287218,1770033130710,-1207.41156241,0.00012791,2]
[404287219,1770033160990,-517.79119955,0.00012792,2]
[404287220,1770033176245,3964.4276009,0.00012702,2]
[404287221,1770033176267,5000.01,0.00012702,2]
[404287222,1770033176287,4104.57685021,0.00012702,2]
[404287223,1770033262713,168.7944682,0.00022,90]
[404287224,1770033266865,-660.30319822,0.00012702,2]
[404287225,1770033282904,-2327.6382,0.00012702,2]
[404287226,1770033347355,-1931.01554889,0.00012702,2]
[404287227,1770033347432,-5000.01,0.00012702,2]
[404287228,1770033350453,-5000.01,0.00012702,2]
[404287229,1770033353564,-680.09146728,0.00012702,2]
[404287230,1770033356544,347.42,0.00011993,2]
[404287231,1770033417088,-393.99562507,0.00012702,2]
[404287233,1770033432031,-1000.0,0.00012702,2]
[404287234,1770033447145,-500.0,0.00012795,2]
[404287235,1770033447172,-151.0,0.00012795,2]
[404287236,1770033447200,-151.0,0.00012795,2]
[404287237,1770033447226,-151.0,0.00012795,2]
[404287238,1770033447252,-151.0,0.00012795,2]
[404287239,1770033447280,-151.0,0.00012795,2]
[404287240,1770033447306,-151.0,0.00012795,2]
[404287241,1770033447331,-151.0,0.00012795,2]
[404287242,1770033447357,-200.0,0.00012795,2]
[404287243,1770033447383,-151.0,0.00012795,2]
[404287244,1770033447409,-151.0,0.00012795,2]
[404287245,1770033447435,-151.0,0.00012795,2]
[404287246,1770033447462,-151.0,0.00012795,2]
[404287247,1770033447488,-127.01,0.00012795,2]
[404287248,1770033447603,-23.99,0.00012795,2]
[404287249,1770033447636,-151.0,0.00012795,2]
[404287250,1770033447664,-151.0,0.00012795,2]
[404287251,1770033447696,-500.0,0.00012795,2]
[404287252,1770033447723,-151.0,0.00012795,2]
[404287253,1770033447750,-500.0,0.00012795,2]
[404287254,1770033447777,-151.0,0.00012795,2]
[404287255,1770033447808,-500.0,0.00012795,2]
[404287256,1770033447837,-151.0,0.00012795,2]
[404287257,1770033448223,-118.6,0.00012795,2]
[404287258,1770033451029,973.94721734,0.00012702,2]
[404287259,1770033451264,-381.4,0.00012795,2]
[404287260,1770033451296,-151.0,0.00012795,2]
[404287261,1770033451327,-500.0,0.00012795,2]
[404287262,1770033451357,-151.0,0.00012795,2]
[404287263,1770033451386,-500.0,0.00012795,2]
[404287264,1770033451416,-500.0,0.00012795,2]
[404287265,1770033451448,-133.21,0.00012795,2]
[404287266,1770033451601,-366.79,0.00012795,2]
[404287267,1770033451628,-151.0,0.00012795,2]
[404287268,1770033451655,-500.0,0.00012795,2]
[404287269,1770033451685,-200.0,0.00012795,2]
[404287270,1770033451711,-151.0,0.00012795,2]
[404287271,1770033451738,-500.0,0.00012795,2]
[404287272,1770033452000,-151.0,0.00012795,2]
[404287273,1770033452031,-460.43,0.00012795,2]
[404287274,1770033452328,-39.57,0.00012795,2]
[404287275,1770033452360,-151.0,0.00012795,2]
[404287276,1770033452390,-151.0,0.00012795,2]
[404287277,1770033452632,151.0,0.00012795,2]
[404287278,1770033452822,151.0,0.00012795,2]
[404287279,1770033453317,151.0,0.00012795,2]
[404287280,1770033453971,151.0,0.00012795,2]
[404287281,1770033454589,151.0,0.00012795,2]
[404287282,1770033455201,151.0,0.00012795,2]
[404287283,1770033455849,151.0,0.00012795,2]
[404287284,1770033460175,973.94721734,0.00012702,2]
[404287285,1770033477490,-1440.6623026,0.00012735,2]
[404287286,1770033485057,150.0,0.00012527,2]
[404287287,1770033485096,150.4373073,0.00012527,2]
[404287288,1770033485130,500.0,0.00012527,2]
[404287289,1770033485525,150.0,0.00012582,2]
[404287290,1770033485584,150.0,0.00012637,2]
[404287291,1770033485619,150.0,0.00012527,2]
[404287292,1770033485664,200.0,0.00012691,2]
[404287293,1770033485707,150.0,0.00012582,2]
[404287294,1770033485751,500.0,0.00012527,2]
[404287295,1770033485801,18.2480875,0.00012637,2]
[404287296,1770033485829,131.7519125,0.00012637,2]
[404287297,1770033485867,500.0,0.00012582,2]
[404287298,1770033485918,500.0,0.00012582,2]
[404287299,1770033485957,179.32668848,0.00012691,2]
[404287300,1770033485991,500.0,0.00012637,2]
[404287301,1770033486044,500.0,0.00012637,2]
[404287302,1770033486098,500.0,0.00012691,2]
[404287303,1770033486256,500.0,0.00012527,2]
[404287304,1770033486361,500.0,0.00012691,2]
[404287305,1770033486408,500.0,0.00012582,2]
[404287306,1770033486448,150.0,0.00012527,2]
[404287307,1770033486569,500.0,0.00012637,2]
[404287308,1770033486648,38.93139902,0.00012582,2]
[404287309,1770033486675,111.06860098,0.00012582,2]
[404287310,1770033486726,500.0,0.00012691,2]
[404287311,1770033486796,150.0,0.00012637,2]
[404287312,1770033486956,169.35603716,0.00012691,2]
[404287313,1770033487022,500.0,0.00012527,2]
[404287314,1770033487185,500.0,0.00012582,2]
[404287315,1770033487375,548.08731584,0.00012637,2]
[404287316,1770033488127,150.0,0.00012527,2]
[404287317,1770033488522,150.0,0.00012582,2]
[404287318,1770033488800,150.0,0.00012637,2]
[404287319,1770033488960,235.58915604,0.00012691,2]
[404287320,1770033488996,150.0,0.00012527,2]
[404287321,1770033489150,150.0,0.00012582,2]
[404287322,1770033489303,215.60722138,0.00012637,2]
[404287323,1770033491036,150.0,0.00012527,2]
[404287324,1770033491201,150.0,0.00012582,2]
[404287325,1770033491409,155.36591009,0.00012637,2]
[404287326,1770033492483,-500.0,0.00012746,2]
[404287327,1770033492511,-500.0,0.00012746,2]
[404287328,1770033492539,-506.61162713,0.00012746,2]
[404287329,1770033492795,500.0,0.00012527,2]
[404287330,1770033493351,150.0,0.00012527,2]
[404287331,1770033493411,150.0,0.00012582,2]
[404287332,1770033493660,500.0,0.00012582,2]
[404287333,1770033493718,500.0,0.00012637,2]
[404287334,1770033493755,150.0,0.00012637,2]
[404287335,1770033493866,36.78674574,0.00012691,2]
[404287336,1770033493888,463.21325426,0.00012691,2]
[404287337,1770033493924,150.0,0.00012691,2]
[404287338,1770033494013,158.43558998,0.00012746,2]
[404287339,1770033494050,150.0,0.00012746,2]
[404287340,1770033495605,500.0,0.00012527,2]
[404287341,1770033495764,500.0,0.00012582,2]
[404287342,1770033495962,569.21162373,0.00012637,2]
[404287343,1770033555395,-1688.33680282,0.00012527,2]
[404287344,1770033555423,-5000.01,0.00012527,2]
[404287345,1770033555447,-406.65319718,0.00012527,2]
[404287346,1770033555456,-150.0,0.00012527,2]
[404287347,1770033555466,-150.0,0.00012527,2]
[404287348,1770033555475,-4293.35680282,0.00012582,2]
[404287349,1770033555506,-2198.36680282,0.00012582,2]
[404287350,1770033555527,-603.27639436,0.00012582,2]
[404287351,1770033555536,-154.11430393,0.00012582,2]
[404287352,1770033555545,-2044.25249889,0.00012637,2]
[404287353,1770033555632,-2801.64319718,0.00012637,2]
[404287354,1770033555659,-2249.10430393,0.00012637,2]
[404287355,1770033555668,-2750.90569607,0.00012691,2]
[404287356,1770033555681,-4344.09430393,0.00012691,2]
[404287357,1770033555691,-655.91569607,0.00012701,2]
[404287358,1770033557033,-5000.01,0.00012701,2]
[404287359,1770033557143,-5000.01,0.00012701,2]
[404287360,1770033557298,-5000.01,0.00012701,2]
[404287361,1770033560037,-5000.01,0.00012701,2]
[404287362,1770033560150,-5000.01,0.00012701,2]
[404287363,1770033560259,-5000.01,0.00012701,2]
[404287364,1770033560374,-5000.01,0.00012701,2]
[404287365,1770033560532,-5000.01,0.00012701,2]
[404287366,1770033560625,-5000.01,0.00012701,2]
[404287367,1770033563172,-5000.01,0.00012701,2]
[404287368,1770033563356,-5000.01,0.00012701,2]
[404287369,1770033563851,-5000.01,0.00012701,2]
[404287370,1770033563973,-5000.01,0.00012701,2]
[404287371,1770033566064,-5000.01,0.00012701,2]
[404287372,1770033566375,-5000.01,0.00012701,2]
[404287373,1770033566498,-5000.01,0.00012701,2]
[404287374,1770033566615,-5000.01,0.00012701,2]
[404287375,1770033566718,-5000.01,0.00012701,2]
[404287376,1770033566828,-5000.01,0.00012701,2]
[404287377,1770033572114,-5000.01,0.00012701,2]
[404287378,1770033572225,-5000.01,0.00012701,2]
[404287379,1770033578199,-5000.01,0.00012701,2]
[404287380,1770033578423,-5000.01,0.00012701,2]
[404287381,1770033596577,-5000.01,0.00012684,2]
[404287382,1770033596688,-5000.01,0.00012684,2]
[404287383,1770033596809,-5000.01,0.00012684,2]
[404287384,1770033596925,-5000.01,0.00012684,2]
[404287385,1770033597036,-5000.01,0.00012684,2]
[404287386,1770033602379,-796.21060421,0.00012602,2]
[404287387,1770033602415,-1200.0,0.00012683,2]
[404287388,1770033602466,-1007.58879158,0.00012684,2]
[404287389,1770033602512,-5000.01,0.00012684,2]
[404287390,1770033602617,-5000.01,0.00012684,2]
[404287391,1770033602738,-2374.51563598,0.00012684,2]
[404287392,1770033602760,-250.97872804,0.00012684,2]
[404287393,1770033602852,-300.0,0.00012683,2]
[404287394,1770033602880,-500.0,0.00012684,2]
[404287395,1770033603365,500.0,0.00012684,2]
[404287396,1770033603528,500.0,0.00012684,2]
[404287397,1770033603905,500.0,0.00012684,2]
[404287398,1770033604034,254.0,0.00012684,2]
[404287399,1770033604122,308.2505155,0.00011684,2]
[404287400,1770033604186,1337.7594845,0.0001262,2]
[404287471,1770034232201,-404.53844161,0.00011679,2]
[404287473,1770034232254,-365.85155839,0.00011679,2]
[404287474,1770034232264,-80.91117294,0.00011679,2]
[404287475,1770034232275,-119.08882706,0.00011679,2]
[404287476,1770034232284,-246.0,0.00011679,2]
[404287477,1770034232294,-210.53302734,0.00011716,2]
[404287478,1770034232309,-274.77697266,0.00011716,2]
[404287479,1770034232319,-187.33368447,0.00011739,2]
[404287480,1770034232364,-11.05768881,0.00011739,2]
[404287481,1770034232374,-300.0,0.00011778,2]
[404287482,1770034232383,-500.0,0.00011839,2]
[404287483,1770034232392,-393.32,0.00011939,2]
[404287484,1770034232401,-165.34215074,0.00011939,2]
[404287485,1770034232410,-152.03521204,0.00011939,2]
[404287486,1770034232420,-300.0,0.00012292,2]
[404287488,1770034232429,-1200.0,0.00012292,2]
[404287490,1770034232438,-11751.431242,0.00012293,2]
[404287492,1770034232447,-1200.0,0.00012355,2]
[404287494,1770034232456,-300.0,0.00012355,2]
[404287496,1770034232466,-13492.37001068,0.00012418,2]
[404287498,1770034232475,-351.20237419,0.00012491,2]
[404287500,1770034232484,-151.0,0.00012498,2]
[404287502,1770034232493,-151.0,0.00012498,2]
[404287504,1770034232502,-257970.90327849,0.00012501,2]
[404287506,1770034232513,-39213.80167035,0.00012501,2]
[404287508,1770034232524,-37126.77048082,0.00012501,2]
[404287511,1770034232535,-71025.57690036,0.00012501,2]
[404287522,1770034232731,-1005.49232681,0.00012501,2]
[404287523,1770034232827,-612.35383556,0.00012501,2]
[404287530,1770034238309,-801.115,0.00012501,2]
[404287548,1770034240385,-4.18157748,0.00012501,2]
[404287549,1770034240616,-2492239.80493013,0.00012501,2]
[404287550,1770034240629,-150.0,0.00012526,2]
[404287551,1770034240639,-150.0,0.00012527,2]
[404287552,1770034240650,-5912.0,0.00012527,2]
[404287553,1770034240661,-250.52896875,0.00012527,2]
[404287554,1770034240672,-500.0,0.00012527,2]
[404287555,1770034240681,-500.0,0.00012527,2]
[404287556,1770034240692,-257.13669619,0.00012527,2]
[404287557,1770034240702,-500.0,0.00012527,2]
[404287558,1770034240713,-500.0,0.00012527,2]
[404287559,1770034240723,-150.54146631,0.00012527,2]
[404287560,1770034240732,-500.0,0.00012527,2]
[404287561,1770034240741,-150.0,0.00012527,2]
[404287562,1770034240751,-166.03286464,0.00012582,2]
[404287563,1770034240760,-5912.0,0.00012582,2]
[404287564,1770034240770,-500.0,0.00012582,2]
[404287565,1770034240779,-500.0,0.00012582,2]
[404287566,1770034240788,-500.0,0.00012582,2]
[404287567,1770034240797,-500.0,0.00012582,2]
[404287568,1770034240807,-500.0,0.00012582,2]
[404287569,1770034240816,-150.0,0.00012582,2]
[404287570,1770034240825,-2500.0,0.00012601,2]
[404287571,1770034240834,-152.03521204,0.00012602,2]
[404287572,1770034240843,-500.0,0.00012602,2]
[404287573,1770034240852,-5935.32,0.00012602,2]
[404287574,1770034240862,-2376.32,0.00012602,2]
[404287575,1770034240875,-9999.99,0.00012602,2]
[404287576,1770034240884,-150.99,0.00012602,2]
[404287577,1770034240894,-9999.99,0.00012602,2]
[404287578,1770034240905,-150.99,0.00012602,2]
[404287579,1770034240915,-999.99,0.00012602,2]
[404287580,1770034240924,-12810.69798763,0.00012602,2]
[404287581,1770034240935,-502.95071126,0.00012602,2]
[404287582,1770034240945,-5912.0,0.00012637,2]
[404287583,1770034240955,-500.0,0.00012637,2]
[404287584,1770034240965,-500.0,0.00012637,2]
[404287585,1770034240975,-500.0,0.00012637,2]
[404287586,1770034240984,-500.0,0.00012637,2]
[404287587,1770034240994,-500.0,0.00012637,2]
[404287588,1770034241004,-282.97813088,0.00012637,2]
[404287589,1770034241014,-361.92445499,0.00012684,2]
[404287590,1770034241023,-1163.5469181,0.00012688,2]
[404287591,1770034241034,-161.256013,0.00012688,2]
[404287592,1770034241044,-76691.8629133,0.00012688,2]
[404287593,1770034241056,-5912.0,0.00012691,2]
[404287594,1770034241065,-500.0,0.00012691,2]
[404287595,1770034241079,-500.0,0.00012691,2]
[404287596,1770034241090,-206.36581695,0.00012691,2]
[404287597,1770034241102,-500.0,0.00012691,2]
[404287598,1770034241112,-151.0,0.00012694,2]
[404287599,1770034241121,-500.0,0.00012694,2]